fUSD/lending_fUSD_20260115
["ID","MTS","AMOUNT","RATE_DAILY","PERIOD"]
[402102854,1768518666030,-1501.48,0.0003589,10]
[402102855,1768518666040,-500.0,0.0003589,10]
[402102856,1768518666051,-563.14,0.0003589,10]
[402102857,1768518666059,-500.0,0.0003589,10]
[402102858,1768518666068,-511.36,0.0003589,10]
[402102859,1768518666077,-1790.04,0.0003589,10]
[402102860,1768518666086,-1121.04,0.0003589,10]
[402102861,1768518666095,-1391.88,0.0003589,10]
[402102862,1768518666103,-500.0,0.0003589,10]
[402102863,1768518666113,-998.86,0.0003589,10]
[402102864,1768518666121,-500.0,0.0003589,10]
[402102865,1768518666130,-977.0,0.0003589,10]
[402102866,1768518666139,-553.89,0.0003589,10]
[402102867,1768518666148,-1104.45,0.0003589,10]
[402102868,1768518666157,-1045.51,0.0003589,10]
[402102869,1768518666165,-500.0,0.0003589,10]
[402102870,1768518666174,-500.0,0.0003589,10]
[402102871,1768518666184,-500.0,0.0003589,10]
[402102872,1768518666193,-1250.68,0.0003589,10]
[402102873,1768518666202,-200.99,0.0003589,10]
[402102874,1768518666211,-916.58,0.0003589,10]
[402102875,1768518666220,-1910.23,0.0003589,10]
[402102876,1768518666229,-711.24,0.0003589,10]
[402102877,1768518666238,-1517.66,0.0003589,10]
[402102878,1768518666247,-500.0,0.0003589,10]
[402102879,1768518666256,-921.11,0.0003589,10]
[402102880,1768518666264,-561.0,0.0003589,10]
[402102881,1768518666274,-500.0,0.0003589,10]
[402102882,1768518666283,-953.34,0.0003589,10]
[402102883,1768518666292,-500.0,0.0003589,10]
[402102884,1768518666301,-581.69,0.0003589,10]
[402102885,1768518666311,-500.0,0.0003589,10]
[402102886,1768518666320,-978.36,0.0003589,10]
[402102888,1768518666330,-4684.94,0.0003589,10]
[402102889,1768518666339,-545.73,0.0003589,10]
[402102890,1768518666348,-649.17,0.0003589,10]
[402102891,1768518666357,-500.0,0.0003589,10]
[402102892,1768518666367,-151.0,0.0003589,31]
[402102893,1768518666376,-582.59,0.0003589,10]
[402102894,1768518666385,-500.0,0.0003589,10]
[402102896,1768518666395,-500.0,0.0003589,10]
[402102897,1768518666404,-1634.41,0.0003589,10]
[402102898,1768518666414,-846.67,0.0003589,10]
[402102899,1768518666423,-849.53,0.0003589,10]
[402102900,1768518666432,-2550.91,0.0003589,10]
[402102902,1768518666442,-500.0,0.0003589,10]
[402102903,1768518666452,-500.0,0.0003589,10]
[402102904,1768518666461,-460.25202244,0.0003589,10]
[402102905,1768518666470,-1282.43,0.0003589,10]
[402102906,1768518666480,-864.74,0.0003589,10]
[402102907,1768518666489,-508.78,0.0003589,10]
[402102909,1768518666499,-739.26,0.0003589,10]
[402102910,1768518666508,-500.0,0.0003589,10]
[402102911,1768518666518,-955.8,0.0003589,10]
[402102912,1768518666527,-1184.63,0.0003589,10]
[402102913,1768518666537,-738.59,0.0003589,10]
[402102914,1768518666546,-690.24,0.0003589,10]
[402102917,1768518666640,-500.0,0.0003589,120]
[402102918,1768518666650,-500.03,0.0003589,10]
[402102919,1768518666659,-1965.52,0.0003589,10]
[402102920,1768518666668,-863.28,0.0003589,10]
[402102921,1768518666677,-1351.53,0.0003589,10]
[402102923,1768518666687,-1274.81,0.0003589,10]
[402102924,1768518666696,-802.0,0.0003589,10]
[402102925,1768518666705,-500.0,0.0003589,10]
[402102926,1768518666714,-3026.06,0.0003589,10]
[402102927,1768518666723,-570.85,0.0003589,10]
[402102928,1768518666732,-500.0,0.0003589,10]
[402102929,1768518666741,-500.0,0.0003589,10]
[402102930,1768518666750,-500.0,0.0003589,10]
[402102931,1768518666759,-500.0,0.0003589,10]
[402102932,1768518666768,-1889.61,0.0003589,10]
[402102933,1768518666778,-613.86,0.0003589,10]
[402102934,1768518666788,-527.05,0.0003589,10]
[402102935,1768518666797,-500.0,0.0003589,10]
[402102936,1768518666806,-891.37,0.0003589,10]
[402102937,1768518666816,-500.0,0.0003589,10]
[402102938,1768518666825,-683.77,0.0003589,10]
[402102940,1768518666835,-3850.69,0.0003589,10]
[402102941,1768518666845,-500.0,0.0003589,10]
[402102942,1768518666854,-1541.93,0.0003589,10]
[402102943,1768518666863,-1360.12,0.0003589,10]
[402102944,1768518666872,-568.88,0.0003589,10]
[402102945,1768518666882,-500.0,0.0003589,10]
[402102946,1768518666892,-885.71,0.0003589,10]
[402102947,1768518666902,-500.0,0.0003589,10]
[402102948,1768518666911,-170.440078,0.0003589,7]
[402102949,1768518666920,-170.440078,0.0003589,7]
[402102950,1768518666929,-500.0,0.0003589,10]
[402102951,1768518666938,-1693.39,0.0003589,10]
[402102952,1768518666948,-1163.5,0.0003589,10]
[402102953,1768518666958,-170.440078,0.0003589,7]
[402102954,1768518666968,-768.5,0.0003589,10]
[402102955,1768518666981,-170.440078,0.0003589,7]
[402102957,1768518666990,-530.51,0.0003589,10]
[402102958,1768518666999,-2217.43,0.0003589,10]
[402102959,1768518667008,-1158.46,0.0003589,10]
[402102960,1768518667019,-563.63,0.0003589,10]
[402102961,1768518667029,-500.0,0.0003589,10]
[402102963,1768518667038,-500.0,0.0003589,10]
[402102964,1768518667048,-522.92,0.0003589,10]
[402102965,1768518667058,-500.0,0.0003589,10]
[402102966,1768518667067,-621.56,0.0003589,10]
[402102967,1768518667077,-500.0,0.0003589,10]
[402102968,1768518667086,-549.22,0.0003589,10]
[402102970,1768518667095,-863.64,0.0003589,10]
[402102971,1768518667105,-1626.38,0.0003589,10]
[402102972,1768518667114,-905.62,0.0003589,10]
[402102973,1768518667124,-719.6,0.0003589,10]
[402102974,1768518667133,-1735.06,0.0003589,10]
[402102975,1768518667143,-642.68,0.0003589,10]
[402102977,1768518667153,-500.0,0.0003589,10]
[402102978,1768518667163,-151.0,0.0003589,31]
[402102979,1768518667172,-500.0,0.0003589,10]
[402102980,1768518667181,-689.17,0.0003589,10]
[402102981,1768518667191,-725.57,0.0003589,10]
[402102982,1768518667200,-1158.13,0.0003589,10]
[402102984,1768518667210,-612.04,0.0003589,10]
[402102985,1768518667219,-1075.88,0.0003589,10]
[402102986,1768518667228,-2108.76,0.0003589,10]
[402102987,1768518667237,-1106.68,0.0003589,10]
[402102988,1768518667247,-500.0,0.0003589,10]
[402102989,1768518667256,-500.0,0.0003589,10]
[402102990,1768518667265,-531.51,0.0003589,10]
[402102991,1768518667274,-400.60637861,0.0003589,10]
[402102992,1768518667284,-1126.45,0.0003589,10]
[402102993,1768518667293,-500.0,0.0003589,10]
[402102994,1768518667303,-898.91,0.0003589,10]
[402102995,1768518667312,-1677.68,0.0003589,10]
[402102996,1768518667321,-500.0,0.0003589,10]
[402102997,1768518667330,-512.88,0.0003589,10]
[402102998,1768518667340,-500.0,0.0003589,10]
[402103000,1768518667349,-595.72,0.0003589,10]
[402103001,1768518667358,-500.0,0.0003589,10]
[402103002,1768518667368,-1040.13,0.0003589,10]
[402103003,1768518667377,-845.55,0.0003589,10]
[402103004,1768518667388,-703.57,0.0003589,10]
[402103005,1768518667397,-500.0,0.0003589,10]
[402103007,1768518667407,-500.0,0.0003589,10]
[402103008,1768518667416,-594.48,0.0003589,10]
[402103009,1768518667425,-515.29,0.0003589,10]
[402103010,1768518667435,-769.88,0.0003589,10]
[402103011,1768518667445,-2316.83,0.0003589,10]
[402103012,1768518667454,-187.58007022,0.0003589,10]
[402103014,1768518667463,-1144.62,0.0003589,10]
[402103015,1768518667472,-500.0,0.0003589,10]
[402103016,1768518667481,-1679.06,0.0003589,10]
[402103017,1768518667491,-1576.66,0.0003589,10]
[402103018,1768518667500,-500.0,0.0003589,10]
[402103019,1768518667510,-867.09,0.0003589,10]
[402103020,1768518667520,-1581.31,0.0003589,10]
[402103021,1768518667529,-1392.48,0.0003589,10]
[402103022,1768518667539,-1232.63,0.0003589,10]
[402103023,1768518667548,-500.0,0.0003589,10]
[402103024,1768518667557,-500.0,0.0003589,10]
[402103025,1768518667567,-500.0,0.0003589,10]
[402103026,1768518667576,-1042.69,0.0003589,10]
[402103027,1768518667585,-1340.17,0.0003589,10]
[402103028,1768518667594,-1001.46,0.0003589,10]
[402103029,1768518667603,-729.05,0.0003589,10]
[402103030,1768518667612,-778.74,0.0003589,10]
[402103031,1768518667622,-680.56,0.0003589,10]
[402103032,1768518667632,-500.0,0.0003589,10]
[402103033,1768518667641,-1304.16,0.0003589,10]
[402103034,1768518667650,-1572.64,0.0003589,10]
[402103035,1768518667660,-500.0,0.0003589,10]
[402103036,1768518667669,-1157.19,0.0003589,10]
[402103037,1768518667679,-561.59,0.0003589,10]
[402103038,1768518667689,-1175.0,0.0003589,10]
[402103039,1768518667698,-2735.48,0.0003589,10]
[402103040,1768518667707,-865.79,0.0003589,10]
[402103041,1768518667716,-657.5,0.0003589,10]
[402103042,1768518667726,-500.0,0.0003589,10]
[402103043,1768518667735,-785.6,0.0003589,10]
[402103044,1768518667745,-500.0,0.0003589,10]
[402103045,1768518667754,-643.08,0.0003589,10]
[402103046,1768518667763,-500.0,0.0003589,10]
[402103047,1768518667773,-500.0,0.0003589,10]
[402103048,1768518667783,-500.0,0.0003589,10]
[402103049,1768518667792,-922.71,0.0003589,10]
[402103050,1768518667801,-500.0,0.0003589,10]
[402103052,1768518667811,-597.51,0.0003589,10]
[402103053,1768518667821,-1016.17,0.0003589,10]
[402103054,1768518667830,-2013.5,0.0003589,10]
[402103055,1768518667839,-500.0,0.0003589,10]
[402103056,1768518667848,-564.37266355,0.0003589,10]
[402103057,1768518667857,-500.0,0.0003589,10]
[402103059,1768518667867,-500.0,0.0003589,10]
[402103060,1768518667876,-500.0,0.0003589,10]
[402103061,1768518667886,-500.0,0.0003589,10]
[402103062,1768518667895,-955.33,0.0003589,10]
[402103063,1768518667904,-500.0,0.0003589,10]
[402103064,1768518667914,-1764.34,0.0003589,10]
[402103066,1768518667923,-500.0,0.0003589,10]
[402103067,1768518667934,-1623.29,0.0003589,10]
[402103068,1768518667943,-500.0,0.0003589,10]
[402103069,1768518667953,-500.0,0.0003589,10]
[402103070,1768518667962,-577.43,0.0003589,10]
[402103071,1768518667974,-571.06103279,0.0003589,10]
[402103073,1768518667984,-1134.45,0.0003589,10]
[402103074,1768518667993,-1713.14,0.0003589,10]
[402103075,1768518668002,-1072.1,0.0003589,10]
[402103076,1768518668011,-500.0,0.0003589,10]
[402103077,1768518668022,-560.46,0.0003589,10]
[402103078,1768518668031,-500.0,0.0003589,10]
[402103080,1768518668040,-500.0,0.0003589,10]
[402103081,1768518668052,-500.0,0.0003589,10]
[402103082,1768518668063,-624.43,0.0003589,10]
[402103083,1768518668073,-657.52,0.0003589,10]
[402103084,1768518668083,-4133.36,0.0003589,10]
[402103085,1768518668092,-500.0,0.0003589,10]
[402103087,1768518668102,-500.0,0.0003589,10]
[402103088,1768518668112,-1134.84,0.0003589,10]
[402103089,1768518668122,-624.69,0.0003589,10]
[402103090,1768518668131,-613.02562763,0.00035956,10]
[402103091,1768518668140,-322682.4450169,0.00035957,2]
[402103093,1768518668149,-151.0,0.00035957,31]
[402103094,1768518668158,-1657.21730232,0.00036,120]
[402103095,1768518668167,-500.0,0.00036,120]
[402103096,1768518668176,-150.0,0.00036,2]
[402103097,1768518668185,-171.56907632,0.00036064,2]
[402103098,1768518668196,-280.9653154,0.00036064,2]
[402103100,1768518668205,-2256.71405876,0.00036064,2]
[402103101,1768518668215,-772.38800215,0.00036064,2]
[402103102,1768518668224,-491.06549,0.0003607,74]
[402103103,1768518668233,-491.06549,0.0003607,74]
[402103104,1768518668242,-491.06549,0.0003607,74]
[402103105,1768518668251,-491.06549,0.0003607,74]
[402103106,1768518668261,-1000.0,0.00036088,2]
[402103108,1768518668271,-500.0,0.00036163,10]
[402103109,1768518668280,-436.37165214,0.00036163,10]
[402103110,1768518668289,-500.0,0.00036163,10]
[402103111,1768518668298,-1000.0,0.00036163,10]
[402103112,1768518668307,-1282.05,0.00036163,10]
[402103113,1768518668316,-969.81,0.00036163,10]
[402103114,1768518668326,-2954.59,0.00036163,10]
[402103115,1768518668335,-1464.18,0.00036163,10]
[402103116,1768518668345,-500.0,0.00036163,10]
[402103117,1768518668354,-748.03,0.00036163,10]
[402103118,1768518668364,-150.0,0.00036163,5]
[402103120,1768518668373,-500.0,0.00036163,10]
[402103121,1768518668382,-794.64,0.00036163,10]
[402103122,1768518668392,-500.0,0.00036163,10]
[402103123,1768518668401,-917.13,0.00036163,10]
[402103124,1768518668411,-881.47,0.00036163,10]
[402103125,1768518668421,-680.91,0.00036163,10]
[402103126,1768518668430,-2705.52,0.00036163,10]
[402103127,1768518668439,-11477.73144908,0.00036164,27]
[402103129,1768518668448,-500.0,0.00036164,10]
[402103130,1768518668458,-500.0,0.00036164,10]
[402103131,1768518668467,-1800.0,0.00036164,14]
[402103132,1768518668477,-500.0,0.00036164,10]
[402103133,1768518668486,-500.0,0.00036164,10]
[402103134,1768518668496,-557.41,0.00036164,10]
[402103135,1768518668506,-500.0,0.00036164,10]
[402103136,1768518668516,-500.0,0.00036164,10]
[402103138,1768518668526,-500.0,0.00036164,10]
[402103139,1768518668536,-618.33,0.00036164,10]
[402103140,1768518668545,-500.0,0.00036164,10]
[402103141,1768518668555,-500.0,0.00036164,10]
[402103142,1768518668565,-546.89,0.00036164,10]
[402103143,1768518668574,-500.0,0.00036164,10]
[402103145,1768518668584,-742.2,0.00036164,10]
[402103146,1768518668594,-500.0,0.00036164,10]
[402103147,1768518668603,-289.05310055,0.00036164,10]
[402103148,1768518668613,-656.76,0.00036164,10]
[402103149,1768518668623,-590.6,0.00036164,10]
[402103151,1768518668642,-1222.32,0.00036164,10]
[402103152,1768518668653,-500.0,0.00036164,10]
[402103153,1768518668663,-200.0,0.00036164,2]
[402103154,1768518668673,-500.0,0.00036164,10]
[402103155,1768518668683,-500.0,0.00036164,10]
[402103157,1768518668693,-500.0,0.00036164,10]
[402103158,1768518668703,-500.0,0.00036164,10]
[402103159,1768518668713,-500.0,0.00036164,10]
[402103160,1768518668723,-505.4,0.00036164,10]
[402103161,1768518668733,-500.0,0.00036164,10]
[402103162,1768518668742,-500.0,0.00036164,10]
[402103163,1768518668752,-500.0,0.00036164,10]
[402103164,1768518668762,-500.0,0.00036164,10]
[402103166,1768518668772,-500.0,0.00036164,10]
[402103167,1768518668781,-775.95,0.00036164,10]
[402103168,1768518668791,-500.0,0.00036164,10]
[402103169,1768518668801,-279.83,0.00036164,10]
[402103170,1768518668812,-500.0,0.00036164,10]
[402103172,1768518668822,-500.0,0.00036164,10]
[402103173,1768518668832,-1056.0,0.00036164,10]
[402103174,1768518668841,-500.0,0.00036164,10]
[402103175,1768518668851,-501.09,0.00036164,10]
[402103176,1768518668861,-500.0,0.00036164,10]
[402103177,1768518668871,-612.05,0.00036164,10]
[402103179,1768518668882,-500.0,0.00036164,10]
[402103180,1768518668891,-910.49,0.00036164,10]
[402103181,1768518668901,-704.28,0.00036164,10]
[402103182,1768518668913,-500.0,0.00036164,10]
[402103183,1768518668923,-500.0,0.00036164,10]
[402103185,1768518668933,-500.0,0.00036164,10]
[402103186,1768518668943,-1639.77,0.00036164,10]
[402103187,1768518668953,-500.0,0.00036164,10]
[402103188,1768518668962,-500.0,0.00036164,10]
[402103189,1768518668974,-585.09,0.00036164,10]
[402103190,1768518668988,-315.16735808,0.00036164,10]
[402103192,1768518668998,-657.35,0.00036164,10]
[402103193,1768518669009,-1168.7,0.00036164,10]
[402103194,1768518669021,-500.0,0.00036164,10]
[402103195,1768518669032,-611.14,0.00036164,10]
[402103196,1768518669042,-500.0,0.00036164,10]
[402103198,1768518669054,-866.83,0.00036164,10]
[402103199,1768518669064,-251.17307503,0.00036164,10]
[402103200,1768518669075,-1114.58,0.00036164,10]
[402103201,1768518669085,-500.0,0.00036164,10]
[402103202,1768518669096,-500.0,0.00036164,10]
[402103204,1768518669106,-642.36,0.00036164,10]
[402103205,1768518669116,-500.0,0.00036164,10]
[402103206,1768518669126,-500.0,0.00036164,10]
[402103207,1768518669136,-538.55,0.00036164,10]
[402103208,1768518669146,-1178.1,0.00036164,10]
[402103209,1768518669156,-500.0,0.00036164,10]
[402103211,1768518669166,-500.0,0.00036164,10]
[402103212,1768518669176,-168.35101,0.00036164,31]
[402103213,1768518669186,-555.62,0.00036164,10]
[402103214,1768518669197,-500.0,0.00036164,10]
[402103215,1768518669207,-684.11,0.00036164,10]
[402103217,1768518669217,-533.83,0.00036164,10]
[402103218,1768518669227,-500.0,0.00036164,10]
[402103219,1768518669237,-151.0,0.00036164,31]
[402103220,1768518669247,-663.66,0.00036164,10]
[402103221,1768518669257,-500.0,0.00036164,10]
[402103223,1768518669267,-500.0,0.00036164,10]
[402103224,1768518669277,-1144.43,0.00036164,10]
[402103225,1768518669287,-500.0,0.00036164,10]
[402103226,1768518669296,-1648.21,0.00036164,10]
[402103227,1768518669306,-500.0,0.00036164,10]
[402103228,1768518669317,-500.0,0.00036164,10]
[402103229,1768518669327,-500.0,0.00036164,10]
[402103230,1768518669337,-500.0,0.00036164,10]
[402103231,1768518669347,-500.0,0.00036164,10]
[402103232,1768518669358,-569.31,0.00036164,10]
[402103233,1768518669368,-500.0,0.00036164,10]
[402103234,1768518669378,-586.35,0.00036164,10]
[402103235,1768518669388,-500.0,0.00036164,10]
[402103237,1768518669399,-500.0,0.00036164,10]
[402103238,1768518669409,-592.72,0.00036164,10]
[402103239,1768518669419,-562.94,0.00036164,10]
[402103240,1768518669430,-587.95834441,0.00036164,10]
[402103241,1768518669439,-606.85,0.00036164,10]
[402103243,1768518669449,-500.0,0.00036164,10]
[402103244,1768518669459,-500.0,0.00036164,10]
[402103245,1768518669470,-500.0,0.00036164,10]
[402103246,1768518669480,-500.0,0.00036164,10]
[402103247,1768518669490,-500.0,0.00036164,10]
[402103249,1768518669500,-807.01,0.00036164,10]
[402103250,1768518669510,-500.0,0.00036164,10]
[402103251,1768518669520,-653.11,0.00036164,10]
[402103252,1768518669530,-500.0,0.00036164,10]
[402103253,1768518669540,-539.17196203,0.00036164,10]
[402103254,1768518669550,-500.0,0.00036164,10]
[402103256,1768518669560,-500.0,0.00036164,10]
[402103257,1768518669571,-500.0,0.00036164,10]
[402103258,1768518669581,-500.0,0.00036164,10]
[402103259,1768518669591,-540.64,0.00036164,10]
[402103260,1768518669601,-681.78,0.00036164,10]
[402103261,1768518669612,-151.0,0.00036164,31]
[402103262,1768518669622,-635.51,0.00036164,10]
[402103264,1768518669632,-500.0,0.00036164,10]
[402103265,1768518669642,-750.99,0.00036164,10]
[402103266,1768518669652,-500.0,0.00036164,10]
[402103267,1768518669662,-460.27426692,0.00036164,10]
[402103268,1768518669673,-708.23,0.00036164,10]
[402103269,1768518669683,-500.0,0.00036164,10]
[402103271,1768518669693,-500.0,0.00036164,10]
[402103272,1768518669703,-500.0,0.00036164,10]
[402103273,1768518669713,-500.0,0.00036164,10]
[402103274,1768518669724,-1002.86,0.00036164,10]
[402103275,1768518669733,-907.57,0.00036164,10]
[402103276,1768518669743,-770.76,0.00036164,10]
[402103278,1768518669754,-1436.73,0.00036164,10]
[402103279,1768518669765,-500.0,0.00036164,10]
[402103280,1768518669775,-720.33,0.00036164,10]
[402103281,1768518669785,-500.0,0.00036164,10]
[402103282,1768518669795,-572.8,0.00036164,10]
[402103284,1768518669806,-500.0,0.00036164,10]
[402103285,1768518669816,-500.0,0.00036164,10]
[402103286,1768518669826,-500.0,0.00036164,10]
[402103287,1768518669836,-675.87,0.00036164,10]
[402103288,1768518669846,-500.0,0.00036164,10]
[402103289,1768518669856,-1295.34,0.00036164,10]
[402103290,1768518669866,-500.0,0.00036164,10]
[402103292,1768518669875,-500.0,0.00036164,10]
[402103293,1768518669886,-500.0,0.00036164,10]
[402103294,1768518669895,-500.0,0.00036164,10]
[402103295,1768518669905,-500.0,0.00036164,10]
[402103296,1768518669915,-500.0,0.00036164,10]
[402103297,1768518669925,-1068.3,0.00036164,10]
[402103298,1768518669936,-500.0,0.00036164,10]
[402103299,1768518669947,-500.0,0.00036164,10]
[402103301,1768518669957,-1521.26,0.00036164,10]
[402103302,1768518669967,-869.14,0.00036164,10]
[402103303,1768518669981,-1271.4,0.00036164,10]
[402103304,1768518669990,-500.0,0.00036164,10]
[402103305,1768518670000,-655.55,0.00036164,10]
[402103307,1768518670010,-500.0,0.00036164,10]
[402103308,1768518670020,-702.54,0.00036164,10]
[402103309,1768518670030,-1665.48,0.00036164,10]
[402103310,1768518670041,-500.0,0.00036164,10]
[402103311,1768518670054,-500.0,0.00036164,10]
[402103313,1768518670064,-664.9,0.00036164,10]
[402103314,1768518670076,-500.0,0.00036164,10]
[402103315,1768518670087,-500.0,0.00036164,10]
[402103316,1768518670097,-795.18,0.00036164,10]
[402103317,1768518670108,-681.14,0.00036164,10]
[402103319,1768518670118,-500.0,0.00036164,10]
[402103320,1768518670128,-500.0,0.00036164,10]
[402103321,1768518670138,-500.0,0.00036164,10]
[402103322,1768518670149,-576.21,0.00036164,10]
[402103323,1768518670158,-1081.09,0.00036164,10]
[402103324,1768518670168,-500.0,0.00036164,10]
[402103326,1768518670179,-500.0,0.00036164,10]
[402103327,1768518670188,-500.0,0.00036164,10]
[402103328,1768518670198,-500.0,0.00036164,10]
[402103329,1768518670208,-500.0,0.00036164,10]
[402103330,1768518670217,-832.1,0.00036164,10]
[402103332,1768518670227,-500.0,0.00036164,10]
[402103333,1768518670237,-500.0,0.00036164,10]
[402103334,1768518670248,-500.0,0.00036164,10]
[402103335,1768518670257,-586.81,0.00036164,10]
[402103336,1768518670268,-500.0,0.00036164,10]
[402103337,1768518670278,-500.0,0.00036164,10]
[402103339,1768518670289,-500.0,0.00036164,10]
[402103340,1768518670299,-500.0,0.00036164,10]
[402103341,1768518670309,-500.0,0.00036164,10]
[402103342,1768518670321,-928.19,0.00036164,10]
[402103343,1768518670331,-500.0,0.00036164,10]
[402103345,1768518670341,-638.35,0.00036164,10]
[402103346,1768518670351,-500.0,0.00036164,10]
[402103347,1768518670360,-500.0,0.00036164,10]
[402103348,1768518670371,-557.76044289,0.00036164,10]
[402103349,1768518670381,-500.0,0.00036164,10]
[402103351,1768518670391,-530.13,0.00036164,10]
[402103352,1768518670400,-500.0,0.00036164,10]
[402103353,1768518670410,-853.07,0.00036164,10]
[402103354,1768518670420,-500.0,0.00036164,10]
[402103355,1768518670430,-500.0,0.00036164,10]
[402103356,1768518670440,-500.0,0.00036164,10]
[402103358,1768518670450,-500.0,0.00036164,10]
[402103359,1768518670460,-500.0,0.00036164,10]
[402103360,1768518670470,-682.11,0.00036164,10]
[402103361,1768518670480,-964.75,0.00036164,10]
[402103362,1768518670490,-500.0,0.00036164,10]
[402103364,1768518670500,-500.0,0.00036164,10]
[402103365,1768518670509,-500.0,0.00036164,10]
[402103366,1768518670520,-575.94,0.00036164,10]
[402103367,1768518670530,-430.8164191,0.00036164,10]
[402103368,1768518670539,-572.92,0.00036164,10]
[402103369,1768518670550,-629.25,0.00036164,10]
[402103371,1768518670559,-500.0,0.00036164,10]
[402103372,1768518670569,-500.0,0.00036164,10]
[402103373,1768518670579,-872.68,0.00036164,10]
[402103374,1768518670589,-500.0,0.00036164,10]
[402103375,1768518670598,-1250.58,0.00036164,10]
[402103376,1768518670608,-367.19697881,0.00036164,10]
[402103378,1768518670618,-695.06,0.00036164,10]
[402103379,1768518670629,-577.05,0.00036164,10]
[402103380,1768518670639,-500.0,0.00036164,120]
[402103381,1768518670649,-808.28,0.00036164,10]
[402103382,1768518670658,-500.0,0.00036164,10]
[402103383,1768518670668,-761.18,0.00036164,10]
[402103385,1768518670678,-600.15,0.00036164,10]
[402103386,1768518670688,-500.0,0.00036164,10]
[402103387,1768518670698,-1684.77,0.00036164,10]
[402103388,1768518670708,-500.0,0.00036164,10]
[402103389,1768518670718,-500.0,0.00036164,10]
[402103390,1768518670729,-602.5,0.00036164,10]
[402103393,1768518670974,-500.0,0.00036164,10]
[402103395,1768518670987,-782.12,0.00036164,10]
[402103396,1768518670997,-1476.59,0.00036164,10]
[402103397,1768518671008,-500.0,0.00036164,10]
[402103398,1768518671020,-500.0,0.00036164,10]
[402103399,1768518671030,-500.0,0.00036164,10]
[402103401,1768518671039,-856.35,0.00036164,10]
[402103402,1768518671051,-500.0,0.00036164,10]
[402103403,1768518671060,-646.64047427,0.00036164,10]
[402103404,1768518671070,-526.78,0.00036164,10]
[402103405,1768518671081,-821.25,0.00036164,10]
[402103406,1768518671091,-500.0,0.00036164,10]
[402103408,1768518671101,-500.0,0.00036164,10]
[402103409,1768518671111,-656.87,0.00036164,10]
[402103410,1768518671122,-500.0,0.00036164,10]
[402103411,1768518671132,-500.0,0.00036164,10]
[402103412,1768518671142,-557.66,0.00036164,10]
[402103414,1768518671153,-500.0,0.00036164,10]
[402103415,1768518671162,-1060.82,0.00036164,10]
[402103416,1768518671172,-500.0,0.00036164,10]
[402103417,1768518671181,-500.0,0.00036164,10]
[402103418,1768518671190,-553.04,0.00036164,10]
[402103419,1768518671200,-503.85,0.00036164,10]
[402103420,1768518671210,-500.0,0.00036164,10]
[402103422,1768518671219,-500.0,0.00036164,10]
[402103423,1768518671228,-500.0,0.00036164,10]
[402103424,1768518671238,-761.57,0.00036164,10]